Service area,Service sub division,TVBC Service,Expense type,Detailed expense type,TVBC account code,Date Paid,Transaction Reference,Nett Value,Supplier Name
Environmental & Regulatory,Community Development,Community and Leisure ,Employees,Indirect Employee Expenses,Temporary Staff,17/02/2015,147751,-5058,Winchester City Council
External Trading Accounts,Industrial Estates,Estates and Economic Development ,Premises related Expenditure,Energy Costs,Gas,26/02/2015,147902,-1005.19,Total Gas & Power Ltd
External Trading Accounts,Industrial Estates,Estates and Economic Development ,Premises related Expenditure,Water Services,Water And Sewerage Charges,26/02/2015,148509,-564.22,Southern Water
Central Services to the Public,Management & Support Services,IT,Transport Related Expenditure,Contract Hire and Operating Leases,Officer lease cars,19/02/2015,144435,-537.3,Arnold Clark Finance Ltd
Central Services to the Public,Local Tax Collection,Revenues,Supplies & Services,"Equipment, Furniture & Materials",Maintenance Equip + Materials,05/02/2015,146379,-149.89,Neopost Ltd
Housing Services,Housing Benefits ,Revenues,Supplies & Services,"Equipment, Furniture & Materials",Maintenance Equip + Materials,05/02/2015,146379,-149.89,Neopost Ltd
Central Services to the Public,Local Tax Collection,Revenues,Supplies & Services,"Equipment, Furniture & Materials",Maintenance Equip + Materials,05/02/2015,146379,-149.88,Neopost Ltd
Central Services to the Public,Local Tax Collection,Revenues,Supplies & Services,"Equipment, Furniture & Materials",Maintenance Equip + Materials,05/02/2015,146379,-149.88,Neopost Ltd
Planning & Development,Planning Policy,Plan Pol & Transport,Supplies & Services,"Printing, Stationery & General Office Expenses",External Printing,05/02/2015,146378,1,Personal data - Data Protection Act 1998
Planning & Development,Planning Policy,Plan Pol & Transport,Supplies & Services,"Printing, Stationery & General Office Expenses",Postage Costs,05/02/2015,146378,2.12,Personal data - Data Protection Act 1998
Planning & Development,Planning Policy,Plan Pol & Transport,Supplies & Services,Communications & Computing,Mobile Telephone Charges,05/02/2015,146378,10,Personal data - Data Protection Act 1998
Central Services to the Public,Local Tax Collection,Revenues,Supplies & Services,"Printing, Stationery & General Office Expenses",Postage Costs,12/02/2015,147118,12.8,Royal Mail
Cultural & Related,Recreation & Sport,Community and Leisure ,Supplies & Services,Communications & Computing,Land Line Telephone Charges,05/02/2015,146380,13,Virgin Media Payments Ltd
Cultural & Related,Recreation & Sport,Community and Leisure ,Supplies & Services,Communications & Computing,Land Line Telephone Charges,26/02/2015,148355,13,Virgin Media Payments Ltd
Cultural & Related,Recreation & Sport,Community and Leisure ,Supplies & Services,Communications & Computing,Land Line Telephone Charges,05/02/2015,146380,14.4,Virgin Media Payments Ltd
Cultural & Related,Recreation & Sport,Community and Leisure ,Supplies & Services,Communications & Computing,Land Line Telephone Charges,26/02/2015,148355,15.63,Virgin Media Payments Ltd
Cultural & Related,Tourism,Estates and Economic Development ,Premises related Expenditure,Repairs Alterations & Maintenance of Buildings,Planned Maintenance - Non Est,19/02/2015,147582,18.75,Temple Lifts Ltd
Cultural & Related,Culture & Heritage,Estates and Economic Development ,Premises related Expenditure,Repairs Alterations & Maintenance of Buildings,Planned Maintenance - Non Est,19/02/2015,147582,18.75,Temple Lifts Ltd
Environmental & Regulatory,Regulatory Services,Estates and Economic Development ,Supplies & Services,Communications & Computing,Telephone Tracking System,12/02/2015,146931,20,Ctrack Uk Limited
Environmental & Regulatory,Waste management,Environmental,Supplies & Services,Communications & Computing,Telephone Tracking System,12/02/2015,146931,20,Ctrack Uk Limited
Planning & Development,Planning Policy,Plan Pol & Transport,Supplies & Services,Communications & Computing,Land Line Telephone Charges,05/02/2015,146378,22.25,Personal data - Data Protection Act 1998
Cultural & Related,Open Spaces,Environmental,Supplies & Services,"Equipment, Furniture & Materials",Purchase Equip + Materials,05/02/2015,144977,24,Jrb Enterpise Ltd
Central Services to the Public,Management & Support Services,Environmental,Supplies & Services,Communications & Computing,Mobile Telephone Charges,12/02/2015,147161,25.79,Vodafone Limited
Cultural & Related,Recreation & Sport,Community and Leisure ,Supplies & Services,Communications & Computing,Land Line Telephone Charges,05/02/2015,146380,26,Virgin Media Payments Ltd
Central Services to the Public,Management & Support Services,IT,Supplies & Services,Communications & Computing,Communication Links,26/02/2015,148355,26,Virgin Media Payments Ltd
Cultural & Related,Recreation & Sport,Community and Leisure ,Supplies & Services,Communications & Computing,Land Line Telephone Charges,26/02/2015,148355,26,Virgin Media Payments Ltd
Central Services to the Public,Management & Support Services,IT,Supplies & Services,Communications & Computing,Communication Links,05/02/2015,146380,26.02,Virgin Media Payments Ltd
External Trading Accounts,Industrial Estates,Estates and Economic Development ,Supplies & Services,Communications & Computing,Land Line Telephone Charges,05/02/2015,146380,27.27,Virgin Media Payments Ltd
External Trading Accounts,Industrial Estates,Estates and Economic Development ,Supplies & Services,Communications & Computing,Land Line Telephone Charges,26/02/2015,148355,28.41,Virgin Media Payments Ltd
Central Services to the Public,Management & Support Services,Environmental,Supplies & Services,Communications & Computing,Telephone Tracking System,12/02/2015,146931,30,Ctrack Uk Limited
Cultural & Related,Recreation & Sport,Community and Leisure ,Supplies & Services,Miscellaneous Expenses,Waste Collection,19/02/2015,147573,31.41,Sita Uk Ltd
"Highways, Roads & Transport",Parking Services,Plan Pol & Transport,Supplies & Services,Communications & Computing,Alarm Lines,05/02/2015,146380,37,Virgin Media Payments Ltd
"Highways, Roads & Transport",Parking Services,Plan Pol & Transport,Supplies & Services,Communications & Computing,Alarm Lines,26/02/2015,148355,37.04,Virgin Media Payments Ltd
Cultural & Related,Culture & Heritage,Estates and Economic Development ,Supplies & Services,Communications & Computing,Land Line Telephone Charges,05/02/2015,146380,39,Virgin Media Payments Ltd
Cultural & Related,Culture & Heritage,Estates and Economic Development ,Supplies & Services,Communications & Computing,Land Line Telephone Charges,26/02/2015,148355,39.09,Virgin Media Payments Ltd
Cultural & Related,Culture & Heritage,Estates and Economic Development ,Supplies & Services,Communications & Computing,Land Line Telephone Charges,26/02/2015,148355,39.53,Virgin Media Payments Ltd
Cultural & Related,Culture & Heritage,Estates and Economic Development ,Supplies & Services,Communications & Computing,Land Line Telephone Charges,05/02/2015,146380,39.85,Virgin Media Payments Ltd
"Highways, Roads & Transport",Parking Services,Plan Pol & Transport,Supplies & Services,"Printing, Stationery & General Office Expenses",Criminal Records Bureau Checks,26/02/2015,146413,44,Hampshire County Council
Cultural & Related,Culture & Heritage,Community and Leisure ,Supplies & Services,Communications & Computing,Communication Links,05/02/2015,146380,52.02,Virgin Media Payments Ltd
Cultural & Related,Culture & Heritage,Community and Leisure ,Supplies & Services,Communications & Computing,Communication Links,26/02/2015,148355,52.06,Virgin Media Payments Ltd
Environmental & Regulatory,Street Cleansing (not chargeable to Highways),Environmental,Transport Related Expenditure,Direct Transport Costs,Repair Materials,26/02/2015,147759,52.53,Johnston Sweepers Ltd
Environmental & Regulatory,Street Cleansing (not chargeable to Highways),Environmental,Supplies & Services,Miscellaneous Expenses,Medical Fees,19/02/2015,147599,52.6,Occupational Health First
Environmental & Regulatory,Regulatory Services,Housing and Environmental Health ,Transport Related Expenditure,Direct Transport Costs,Tyres,19/02/2015,146904,53.47,Ats Euromaster Limited
Central Services to the Public,Management & Support Services,Finance,Supplies & Services,"Printing, Stationery & General Office Expenses",Postage Costs,05/02/2015,146712,58.45,Royal Mail
Central Services to the Public,Management & Support Services,Estates and Economic Development ,Transport Related Expenditure,Direct Transport Costs,Tyres,19/02/2015,146904,59.94,Ats Euromaster Limited
Environmental & Regulatory,Regulatory Services,Housing and Environmental Health ,Transport Related Expenditure,Direct Transport Costs,Tyres,19/02/2015,146904,59.94,Ats Euromaster Limited
Central Services to the Public,Management & Support Services,Estates and Economic Development ,Supplies & Services,Communications & Computing,Telephone Tracking System,12/02/2015,146931,60,Ctrack Uk Limited
Central Services to the Public,Management & Support Services,Environmental,Supplies & Services,Communications & Computing,Land Line Telephone Charges,26/02/2015,148355,66.39,Virgin Media Payments Ltd
Central Services to the Public,Management & Support Services,Environmental,Supplies & Services,Communications & Computing,Land Line Telephone Charges,05/02/2015,146380,66.83,Virgin Media Payments Ltd
Central Services to the Public,Management & Support Services,IT,Supplies & Services,Communications & Computing,Communication Links,05/02/2015,146380,67,Virgin Media Payments Ltd
Central Services to the Public,Management & Support Services,IT,Supplies & Services,Communications & Computing,Communication Links,26/02/2015,148355,67,Virgin Media Payments Ltd
"Highways, Roads & Transport",Parking Services,Plan Pol & Transport,Premises related Expenditure,Repairs Alterations & Maintenance of Buildings,Car Park General Repairs,05/02/2015,143573,70.13,Gristwood & Toms Ltd
Central Services to the Public,Emergency Planning,Corporate & Democratic,Supplies & Services,Communications & Computing,Land Line Telephone Charges,05/02/2015,146380,91,Virgin Media Payments Ltd
Central Services to the Public,Emergency Planning,Corporate & Democratic,Supplies & Services,Communications & Computing,Land Line Telephone Charges,26/02/2015,148355,91,Virgin Media Payments Ltd
Cultural & Related,Culture & Heritage,Estates and Economic Development ,Supplies & Services,Miscellaneous Expenses,Waste Collection,19/02/2015,147573,115.28,Sita Uk Ltd
Environmental & Regulatory,Waste management,Environmental,Supplies & Services,Communications & Computing,Mobile Telephone Charges,12/02/2015,147161,123.54,Vodafone Limited
Environmental & Regulatory,Waste management,Environmental,Supplies & Services,Miscellaneous Expenses,Medical Fees,19/02/2015,147599,131.6,Occupational Health First
Planning & Development,Development Control,Planning & Building,Supplies & Services,"Printing, Stationery & General Office Expenses",Postage Costs,05/02/2015,146712,166.59,Royal Mail
Cultural & Related,Open Spaces,Environmental,Supplies & Services,Communications & Computing,Mobile Telephone Charges,12/02/2015,147161,176.06,Vodafone Limited
Central Services to the Public,Management & Support Services,Environmental,Supplies & Services,Communications & Computing,Mobile Telephone Charges,12/02/2015,147161,191.5,Vodafone Limited
Central Services to the Public,Local Tax Collection,Revenues,Supplies & Services,"Printing, Stationery & General Office Expenses",Postage Costs,12/02/2015,147118,193,Royal Mail
Housing Services,Housing Benefits ,Revenues,Supplies & Services,"Printing, Stationery & General Office Expenses",Postage Costs,12/02/2015,147118,193.01,Royal Mail
Cultural & Related,Culture & Heritage,Estates and Economic Development ,Premises related Expenditure,Repairs Alterations & Maintenance of Buildings,Planned Maintenance - Non Est,19/02/2015,147582,193.75,Temple Lifts Ltd
Cultural & Related,Recreation & Sport,Community and Leisure ,Premises related Expenditure,Repairs Alterations & Maintenance of Buildings,Planned Maintenance - Non Est,19/02/2015,147582,193.75,Temple Lifts Ltd
Environmental & Regulatory,Waste management,Environmental,Transport Related Expenditure,Direct Transport Costs,External Garages,19/02/2015,147105,208,Vishay Pm Onboard
Environmental & Regulatory,Waste management,Environmental,Supplies & Services,Communications & Computing,Telephone Tracking System,12/02/2015,146931,210,Ctrack Uk Limited
Cultural & Related,Open Spaces,Environmental,Transport Related Expenditure,Direct Transport Costs,Tyres,19/02/2015,146904,211.23,Ats Euromaster Limited
Environmental & Regulatory,Street Cleansing (not chargeable to Highways),Environmental,Supplies & Services,Communications & Computing,Telephone Tracking System,12/02/2015,146931,230,Ctrack Uk Limited
Central Services to the Public,Local Tax Collection,Revenues,Supplies & Services,"Printing, Stationery & General Office Expenses",Postage Costs,12/02/2015,147118,233.13,Royal Mail
Central Services to the Public,Management & Support Services,Environmental,Transport Related Expenditure,Direct Transport Costs,Oils,19/02/2015,147279,237.8,Fuchs Lubricants (Uk) Plc
Central Services to the Public,Management & Support Services,Environmental,Transport Related Expenditure,Direct Transport Costs,Oils,19/02/2015,147597,237.8,Fuchs Lubricants (Uk) Plc
Planning & Development,Planning Policy,Plan Pol & Transport,Premises related Expenditure,Repairs Alterations & Maintenance of Buildings,General Repairs,05/02/2015,143573,245.46,Gristwood & Toms Ltd
Central Services to the Public,Management & Support Services,Environmental,Transport Related Expenditure,Direct Transport Costs,Repair Materials,19/02/2015,147279,263.43,Fuchs Lubricants (Uk) Plc
Central Services to the Public,Management & Support Services,Environmental,Transport Related Expenditure,Direct Transport Costs,Repair Materials,19/02/2015,147597,263.43,Fuchs Lubricants (Uk) Plc
Central Services to the Public,Management & Support Services,Estates and Economic Development ,Supplies & Services,Miscellaneous Expenses,Waste Collection,19/02/2015,147573,276.09,Sita Uk Ltd
Cultural & Related,Open Spaces,Environmental,Supplies & Services,Communications & Computing,Telephone Tracking System,12/02/2015,146931,280,Ctrack Uk Limited
Central Services,Corporate & Democratic Core,Corporate & Democratic,Supplies & Services,"Printing, Stationery & General Office Expenses",Postage Costs,05/02/2015,146712,294.71,Royal Mail
Cultural & Related,Open Spaces,Environmental,Supplies & Services,Miscellaneous Expenses,Medical Fees,19/02/2015,147599,315.8,Occupational Health First
Environmental & Regulatory,Waste management,Environmental,Transport Related Expenditure,Direct Transport Costs,Tyres,19/02/2015,146904,322.68,Ats Euromaster Limited
Environmental & Regulatory,Street Cleansing (not chargeable to Highways),Environmental,Supplies & Services,Communications & Computing,Mobile Telephone Charges,12/02/2015,147161,324.57,Vodafone Limited
Central Services to the Public,Management & Support Services,Chief Executive's,Supplies & Services,"Printing, Stationery & General Office Expenses",Conference Costs,12/02/2015,146925,383.33,Bournemouth Convention Bureau Ltd
Planning & Development,Development Control,Planning & Building,Supplies & Services,"Printing, Stationery & General Office Expenses",Print Consumables,12/02/2015,146427,385.72,Supplies Team Ltd
Central Services to the Public,Local Tax Collection,Revenues,Supplies & Services,"Printing, Stationery & General Office Expenses",External Printing,19/02/2015,147282,391.05,Hound Envelopes Limited
Environmental & Regulatory,Waste management,Environmental,Employees,Indirect Employee Expenses,Agency Staff - Waged Posts,19/02/2015,147762,432,Abacus Employment Services Ltd
"Highways, Roads & Transport",Parking Services,Plan Pol & Transport,Premises related Expenditure,Repairs Alterations & Maintenance of Buildings,Car Parks - Signs + Lines,05/02/2015,145614,458,Signway Supplies (Datchet Ltd)
Central Services to the Public,Elections,Legal & Democratic,Supplies & Services,"Printing, Stationery & General Office Expenses",External Printing,12/02/2015,147116,458.2,Financial Data Management Plc
Central Services to the Public,Management & Support Services,Environmental,Transport Related Expenditure,Direct Transport Costs,Red Derv,12/02/2015,146911,463.54,Wessex Petroleum Limited
Environmental & Regulatory,Waste management,Environmental,Employees,Indirect Employee Expenses,Agency Staff - Waged Posts,05/02/2015,146355,469.06,Active Staff Ltd
Central Services to the Public,Management & Support Services,Chief Executive's,Supplies & Services,"Clothes, Uniforms & Laundry",Clothing + Uniforms,05/02/2015,144750,471.74,Ricoh Uk Ltd
Environmental & Regulatory,Regulatory Services,Housing and Environmental Health ,Supplies & Services,"Equipment, Furniture & Materials",Purchase Equip + Materials,12/02/2015,145373,474.64,Sx Environmental Supplies Limited
Central Services to the Public,Management & Support Services,Estates and Economic Development ,Supplies & Services,"Printing, Stationery & General Office Expenses",Training Courses,26/02/2015,148525,476,Hss Training
Cultural & Related,Open Spaces,Environmental,Transport Related Expenditure,Direct Transport Costs,Repair Materials,19/02/2015,147143,485.09,T H White Ltd
Central Services to the Public,Management & Support Services,Chief Executive's,Supplies & Services,"Equipment, Furniture & Materials",Purchase Equip + Materials,26/02/2015,147120,486.18,Ricoh Uk Ltd
Central Services to the Public,Management & Support Services,Environmental,Transport Related Expenditure,Direct Transport Costs,Repair Materials,26/02/2015,147759,497.76,Johnston Sweepers Ltd
Planning & Development,Community Development,Community and Leisure ,Supplies & Services,Grants & Subscriptions,Grants,18/02/2015,147813,500,Picket Twenty Community Association
Planning & Development,Economic Development,Estates and Economic Development ,Supplies & Services,Grants & Subscriptions,Grants,11/02/2015,147168,500,Sundae'S Child Ltd
Planning & Development,Economic Development,Estates and Economic Development ,Supplies & Services,Grants & Subscriptions,Grants,25/02/2015,148341,500,Just A Little Bit Different Ltd
Planning & Development,Community Development,Community and Leisure ,Supplies & Services,Grants & Subscriptions,Grants,26/02/2015,148551,500,Alamein Community Association
Planning & Development,Economic Development,Estates and Economic Development ,Supplies & Services,Grants & Subscriptions,Grants,11/02/2015,147167,500,Personal data - Data Protection Act 1998
Planning & Development,Economic Development,Estates and Economic Development ,Supplies & Services,Grants & Subscriptions,Grants,04/02/2015,146446,500,Personal data - Data Protection Act 1998
Planning & Development,Economic Development,Estates and Economic Development ,Supplies & Services,Grants & Subscriptions,Grants,04/02/2015,146450,500,Personal data - Data Protection Act 1998
Planning & Development,Economic Development,Estates and Economic Development ,Supplies & Services,Grants & Subscriptions,Grants,25/02/2015,148342,500,Looking Good Hair & Beauty Limited
Planning & Development,Community Development,Community and Leisure ,Supplies & Services,Grants & Subscriptions,Grants,18/02/2015,147622,500,Mini Merlins & Pendragons Parent & Toddler Gr
Planning & Development,Community Development,Community and Leisure ,Supplies & Services,Grants & Subscriptions,Grants,25/02/2015,148382,500,Romsey Community School Limited
Central Services to the Public,Management & Support Services,IT,Supplies & Services,Communications & Computing,Software Maintenance,19/02/2015,147602,500.2,Daisy Communications Ltd
Cultural & Related,Open Spaces,Environmental,Supplies & Services,"Equipment, Furniture & Materials",Purchase Equip + Materials,05/02/2015,146370,506.7,Spaldings (Uk) Limited
Central Services to the Public,Management & Support Services,Environmental,Supplies & Services,"Clothes, Uniforms & Laundry",Clothing + Uniforms,19/02/2015,147768,508.72,Arco Ltd
Environmental & Regulatory,Waste management,Environmental,Employees,Indirect Employee Expenses,Agency Staff - Waged Posts,12/02/2015,146956,512.8,Simple Recruitment Services Ltd
External Trading Accounts,Industrial Estates,Estates and Economic Development ,Supplies & Services,Miscellaneous Expenses,Waste Collection,19/02/2015,147584,513,Basingstoke Skip Hire & Sthrn Waste Mgt Ltd
Cultural & Related,Culture & Heritage,Estates and Economic Development ,Premises related Expenditure,Repairs Alterations & Maintenance of Buildings,Building Maint - Non Estates,12/02/2015,147308,521,Vp Bastion Limited
Planning & Development,Community Development,Community and Leisure ,Supplies & Services,Grants & Subscriptions,Grants,18/02/2015,147618,525,North Baddesley Village Hall
Cultural & Related,Open Spaces,Environmental,Supplies & Services,"Equipment, Furniture & Materials",Purchase Equip + Materials,26/02/2015,144464,529.5,Hillier Nurseries Limited
Environmental & Regulatory,Street Cleansing (not chargeable to Highways),Environmental,Supplies & Services,"Printing, Stationery & General Office Expenses",Training Courses,26/02/2015,148498,535,Premier Safety Services Ltd
Environmental & Regulatory,Regulatory Services,Housing and Environmental Health ,Supplies & Services,Miscellaneous Expenses,Health And Safety,05/02/2015,146416,540,First For Aid (Hampshire) Ltd
Central Services to the Public,Management & Support Services,Estates and Economic Development ,Third Party Payments,Other Establishments,Private Contractors,19/02/2015,140970,550,Water Matters (Uk) Ltd
Planning & Development,Development Control,Planning & Building,Supplies & Services,Services,Project Consultancy - Policy,12/02/2015,147115,550,Adas Uk Ltd
Environmental & Regulatory,Waste management,Environmental,Employees,Indirect Employee Expenses,Agency Staff - Waged Posts,05/02/2015,146356,552,Simple Recruitment Services Ltd
Central Services to the Public,Management & Support Services,Estates and Economic Development ,Premises related Expenditure,Water Services,Water And Sewerage Charges,19/02/2015,147774,557.68,Southern Water
External Trading Accounts,Industrial Estates,Estates and Economic Development ,Premises related Expenditure,Water Services,Water And Sewerage Charges,12/02/2015,147293,564.22,Southern Water
Environmental & Regulatory,Regulatory Services,Housing and Environmental Health ,Supplies & Services,Grants and subscriptions,Capital Grants,12/02/2015,147315,568.78,P Welbourne-Jones Ltd
Housing Services,Housing Benefits ,Revenues,Supplies & Services,"Printing, Stationery & General Office Expenses",External Printing,19/02/2015,147282,580.25,Hound Envelopes Limited
Planning & Development,Economic Development,Estates and Economic Development ,Supplies & Services,"Printing, Stationery & General Office Expenses",Training Courses,26/02/2015,148118,581.25,Lynx Uk Ltd
Cultural & Related,Open Spaces,Community and Leisure ,Employees,Indirect Employee Expenses,Advertising Of Vacancies,26/02/2015,146413,585,Hampshire County Council
Environmental & Regulatory,Waste management,Environmental,Employees,Indirect Employee Expenses,Agency Staff - Waged Posts,12/02/2015,146960,587.25,Abacus Employment Services Ltd
Central Services to the Public,Management & Support Services,Estates and Economic Development ,Third Party Payments,Other Establishments,Private Contractors,12/02/2015,147283,588,Ashine Cleaning Services Ltd
Environmental & Regulatory,Street Cleansing (not chargeable to Highways),Environmental,Supplies & Services,"Equipment, Furniture & Materials",Purchase Equip + Materials,05/02/2015,144977,594,Jrb Enterpise Ltd
Cultural & Related,Recreation & Sport,Community and Leisure ,Premises related Expenditure,Repairs Alterations & Maintenance of Buildings,Building Maint - Non Estates,05/02/2015,146340,600,Temple Lifts Ltd
Environmental & Regulatory,Waste management,Environmental,Transport Related Expenditure,Direct Transport Costs,Repair Materials,19/02/2015,147105,600,Vishay Pm Onboard
Environmental & Regulatory,Waste management,Environmental,Employees,Indirect Employee Expenses,Agency Staff - Waged Posts,12/02/2015,146420,606.9,365 Supply Ltd
Central Services to the Public,Management & Support Services,Legal & Democratic,Supplies & Services,"Equipment, Furniture & Materials",Purchase Furniture,19/02/2015,147554,608.15,Posturite Limited
Environmental & Regulatory,Street Cleansing (not chargeable to Highways),Environmental,Transport Related Expenditure,Direct Transport Costs,Tyres,19/02/2015,146904,623.08,Ats Euromaster Limited
Central Services to the Public,Management & Support Services,Estates and Economic Development ,Third Party Payments,Other Establishments,Private Contractors,05/02/2015,143573,623.35,Gristwood & Toms Ltd
Planning & Development,Development Control,Planning & Building,Supplies & Services,"Printing, Stationery & General Office Expenses",Training Courses,12/02/2015,147193,625,Adas Uk Ltd
Central Services to the Public,Management & Support Services,IT,Employees,Indirect Employee Expenses,Advertising Of Vacancies,26/02/2015,146413,625,Hampshire County Council
Cultural & Related,Open Spaces,Environmental,Transport Related Expenditure,Direct Transport Costs,Repair Materials,19/02/2015,147142,631.98,T H White Ltd
Central Services to the Public,Management & Support Services,Environmental,Transport Related Expenditure,Direct Transport Costs,Repair Materials,19/02/2015,147137,632.61,Spaldings (Uk) Limited
Cultural & Related,Culture & Heritage,Community and Leisure ,Supplies & Services,Miscellaneous Expenses,Booking Of Acts,26/02/2015,147917,640,Owlsworld
Central Services to the Public,Elections,Legal & Democratic,Supplies & Services,"Printing, Stationery & General Office Expenses",Postage Costs,26/02/2015,147908,650.61,Financial Data Management Plc
Cultural & Related,Culture & Heritage,Estates and Economic Development ,Premises related Expenditure,Energy Costs,Gas,26/02/2015,147641,653.33,Total Gas & Power Ltd
Cultural & Related,Open Spaces,Community and Leisure ,Premises related Expenditure,Grounds Maintenance Costs,Non Contract Tree Works,05/02/2015,143573,657.53,Gristwood & Toms Ltd
Environmental & Regulatory,Waste management,Environmental,Supplies & Services,"Equipment, Furniture & Materials",Purchase Equip + Materials,12/02/2015,147110,658,Southern Tower Services Ltd
Central Services to the Public,Management & Support Services,Environmental,Supplies & Services,"Clothes, Uniforms & Laundry",Clothing + Uniforms,05/02/2015,145638,682.42,Arco Ltd
External Trading Accounts,Industrial Estates,Estates and Economic Development ,Premises related Expenditure,Energy Costs,Gas,26/02/2015,147895,701.3,Total Gas & Power Ltd
Central Services to the Public,Management & Support Services,IT,Supplies & Services,Communications & Computing,Land Line Telephone Charges,12/02/2015,147102,702.31,Virgin Media Payments Ltd
Cultural & Related,Culture & Heritage,Community and Leisure ,Supplies & Services,Catering,Non-Contract Catering,19/02/2015,147113,710.45,Carlsberg Uk Ltd
External Trading Accounts,Industrial Estates,Estates and Economic Development ,Premises related Expenditure,Water Services,Water And Sewerage Charges,19/02/2015,147778,714.6,Southern Water
Environmental & Regulatory,Regulatory Services,Estates and Economic Development ,Premises related Expenditure,Water Services,Water And Sewerage Charges,26/02/2015,148515,728.36,Southern Water
Central Services,Corporate & Democratic Core,Corporate & Democratic,Supplies & Services,"Printing, Stationery & General Office Expenses",Conference Costs,12/02/2015,146925,729.17,Bournemouth Convention Bureau Ltd
Housing Services,Housing Benefits ,Revenues,Supplies & Services,Communications & Computing,Software Maintenance,12/02/2015,147280,732.9,Northgate Information Solutions Uk Ltd
Cultural & Related,Culture & Heritage,Estates and Economic Development ,Premises related Expenditure,Energy Costs,Gas,26/02/2015,147644,734.32,Total Gas & Power Ltd
Central Services to the Public,Management & Support Services,Estates and Economic Development ,Supplies & Services,"Equipment, Furniture & Materials",Purchase Materials (Job Cost),26/02/2015,148516,734.93,Edmundson Electrical Ltd
Environmental & Regulatory,Regulatory Services,Housing and Environmental Health ,Employees,Indirect Employee Expenses,Advertising Of Vacancies,26/02/2015,146413,735,Hampshire County Council
Environmental & Regulatory,Regulatory Services,Housing and Environmental Health ,Employees,Indirect Employee Expenses,Advertising Of Vacancies,26/02/2015,146413,735,Hampshire County Council
Environmental & Regulatory,Regulatory Services,Housing and Environmental Health ,Employees,Indirect Employee Expenses,Advertising Of Vacancies,26/02/2015,146413,735,Hampshire County Council
Central Services to the Public,Management & Support Services,Estates and Economic Development ,Premises related Expenditure,Energy Costs,Gas,26/02/2015,147897,735.62,Total Gas & Power Ltd
Central Services to the Public,Management & Support Services,Legal & Democratic,Transport Related Expenditure,Contract Hire and Operating Leases,Officer lease cars,05/02/2015,146695,738.27,Autoglass
Environmental & Regulatory,Waste management,Environmental,Employees,Indirect Employee Expenses,Agency Staff - Waged Posts,12/02/2015,146938,756,Abacus Employment Services Ltd
Cultural & Related,Open Spaces,Environmental,Supplies & Services,"Equipment, Furniture & Materials",Purchase Equip + Materials,05/02/2015,142052,760.25,Fleet (Line Markers) Ltd
Cultural & Related,Open Spaces,Environmental,Transport Related Expenditure,Direct Transport Costs,Repair Materials,26/02/2015,147594,768.05,T H White Ltd
Central Services to the Public,Management & Support Services,Estates and Economic Development ,Premises related Expenditure,Repairs Alterations & Maintenance of Buildings,Planned Maintenance - Non Est,19/02/2015,147582,775,Temple Lifts Ltd
Cultural & Related,Recreation & Sport,Community and Leisure ,Premises related Expenditure,Repairs Alterations & Maintenance of Buildings,Planned Maintenance - Non Est,19/02/2015,147582,775,Temple Lifts Ltd
Central Services to the Public,Management & Support Services,Estates and Economic Development ,Premises related Expenditure,Water Services,Water And Sewerage Charges,26/02/2015,148518,783.12,Southern Water
Central Services to the Public,Management & Support Services,Estates and Economic Development ,Third Party Payments,Other Establishments,Private Contractors,05/02/2015,146345,790,R H Insulation Services Ltd
Housing Services,"Housing strategy, advice and enabling",Housing and Environmental Health ,Employees,Indirect Employee Expenses,Temporary Staff,12/02/2015,146050,790,Abatec Ltd
Planning & Development,Development Control,Planning & Building,Supplies & Services,Services,Project Consultancy - Policy,05/02/2015,146716,795,Reading Agricultural Consultants Ltd
Planning & Development,Development Control,Planning & Building,Supplies & Services,Services,Project Consultancy - Policy,12/02/2015,147164,795,Reading Agricultural Consultants Ltd
Central Services to the Public,Management & Support Services,Environmental,Supplies & Services,"Clothes, Uniforms & Laundry",Clothing + Uniforms,19/02/2015,147766,797.16,Arco Ltd
Central Services,Corporate & Democratic Core,Corporate & Democratic,Supplies & Services,Members' Allowances,Mayoral Allowance,05/02/2015,146035,833.33,Coffin Mew Llp
Environmental & Regulatory,Waste management,Environmental,Employees,Indirect Employee Expenses,Agency Staff - Waged Posts,12/02/2015,146939,836.29,365 Supply Ltd
Environmental & Regulatory,Regulatory Services,Housing and Environmental Health ,Supplies & Services,Miscellaneous Expenses,Kennel fees,19/02/2015,147551,840,Anton Vets Ltd
Cultural & Related,Culture & Heritage,Community and Leisure ,Supplies & Services,"Equipment, Furniture & Materials",Purchase Equip + Materials,12/02/2015,147136,891.63,Hawthorn Theatrical Ltd
Central Services to the Public,Management & Support Services,Finance,Supplies & Services,"Printing, Stationery & General Office Expenses",Postage Costs,05/02/2015,146410,892.12,Whistl South West Ltd
Cultural & Related,Open Spaces,Environmental,Supplies & Services,Grants & Subscriptions,Hants Probation Trust,05/02/2015,146028,900,Hampshire & Iow Crc Ltd
Central Services to the Public,Management & Support Services,Finance,Supplies & Services,"Printing, Stationery & General Office Expenses",Postage Costs,26/02/2015,147114,933.45,Whistl South West Ltd
Central Services,Corporate & Democratic Core,Corporate & Democratic,Supplies & Services,Communications & Computing,Land Line Telephone Charges,05/02/2015,146415,936.77,Invicta Lifeline Ltd
"Highways, Roads & Transport",Highways and roads - maintenance,Plan Pol & Transport,Premises related Expenditure,Repairs Alterations & Maintenance of Buildings,Highways Repairs,19/02/2015,147577,940,Irvine Grenson Ltd
Central Services to the Public,Management & Support Services,Environmental,Supplies & Services,"Printing, Stationery & General Office Expenses",Training Courses,12/02/2015,146032,941.5,Allied Driving Schools Ltd
Central Services to the Public,Management & Support Services,IT,Supplies & Services,Miscellaneous Expenses,Miscellaneous Capital Expenses,05/02/2015,145785,945,Ics Solutions Ltd
Central Services to the Public,Management & Support Services,IT,Supplies & Services,Miscellaneous Expenses,Miscellaneous Capital Expenses,12/02/2015,146947,950,Automated Intelligence Ltd
Cultural & Related,Open Spaces,Community and Leisure ,Supplies & Services,Grants & Subscriptions,Grants,05/02/2015,146361,967,Personal data - Data Protection Act 1998
Central Services to the Public,Management & Support Services,Plan Pol & Transport,Premises related Expenditure,Grounds Maintenance Costs,Landscape Improvements,05/02/2015,146365,975,Kieron Beattie Landscaping Ltd
Central Services to the Public,Management & Support Services,Community and Leisure ,Supplies & Services,Grants & Subscriptions,Grants,26/02/2015,147919,1000,Winchester Nepalese Ladies Group
Planning & Development,Community Development,Community and Leisure ,Supplies & Services,Grants & Subscriptions,Grants,25/02/2015,148381,1000,Andover Youth Council
Housing Services,Homelessness,Housing and Environmental Health ,Supplies & Services,Miscellaneous Expenses,Bed & Breakfast,05/02/2015,146026,1000,Two Saints Housing Association Ltd
Planning & Development,Community Development,Community and Leisure ,Supplies & Services,Grants & Subscriptions,Grants,26/02/2015,148550,1000,Ampfield Parish Council
Planning & Development,Community Development,Community and Leisure ,Supplies & Services,Grants & Subscriptions,Grants,26/02/2015,148552,1000,Romsey Town Council
Central Services to the Public,Management & Support Services,Plan Pol & Transport,Premises related Expenditure,Repairs Alterations & Maintenance of Buildings,General Repairs,26/02/2015,148123,1000,Bournemouth White Lining Ltd
Central Services to the Public,Management & Support Services,Finance,Supplies & Services,"Printing, Stationery & General Office Expenses",Postage Costs,26/02/2015,146441,1007.68,Whistl South West Ltd
Cultural & Related,Culture & Heritage,Community and Leisure ,Supplies & Services,Catering,Non-Contract Catering,05/02/2015,145408,1008.54,Carlsberg Uk Ltd
Planning & Development,Development Control,Planning & Building,Employees,Indirect Employee Expenses,Temporary Staff,05/02/2015,145557,1015,Hays Specialist Recruitment
Environmental & Regulatory,Waste management,Environmental,Employees,Indirect Employee Expenses,Agency Staff - Waged Posts,12/02/2015,147317,1017.56,Abacus Employment Services Ltd
External Trading Accounts,Industrial Estates,Estates and Economic Development ,Premises related Expenditure,Water Services,Water And Sewerage Charges,12/02/2015,147320,1052.34,Southern Water
Planning & Development,Development Control,Planning & Building,Supplies & Services,"Printing, Stationery & General Office Expenses",Stationery,12/02/2015,146427,1087.72,Supplies Team Ltd
Environmental & Regulatory,Waste management,Environmental,Transport Related Expenditure,Direct Transport Costs,Repair Materials,12/02/2015,146407,1115.8,Terberg Matec Uk Limited
Central Services to the Public,Management & Support Services,Estates and Economic Development ,Premises related Expenditure,Repairs Alterations & Maintenance of Buildings,Building Maint - Non Estates,12/02/2015,147321,1117,Mccarthy Bainbridge Ltd
Central Services to the Public,Management & Support Services,Estates and Economic Development ,Premises related Expenditure,Energy Costs,Gas,26/02/2015,147648,1123.34,Total Gas & Power Ltd
Cultural & Related,Recreation & Sport,Community and Leisure ,Premises related Expenditure,Grounds Maintenance Costs,Gm - Additional Works,12/02/2015,147128,1143,Streetmaster (South Wales) Ltd
Environmental & Regulatory,Regulatory Services,Estates and Economic Development ,Premises related Expenditure,Water Services,Water And Sewerage Charges,05/02/2015,146044,1148.89,Southern Water
External Trading Accounts,Industrial Estates,Estates and Economic Development ,Premises related Expenditure,Energy Costs,Gas,26/02/2015,147896,1153.54,Total Gas & Power Ltd
Central Services to the Public,Management & Support Services,Legal & Democratic,Employees,Indirect Employee Expenses,Advertising Of Vacancies,26/02/2015,146413,1170,Hampshire County Council
Cultural & Related,Open Spaces,Community and Leisure ,Supplies & Services,Grants & Subscriptions,Grants,12/02/2015,147111,1200,Meadows Farm Studios
"Highways, Roads & Transport",Public Transport,Plan Pol & Transport,Third Party Payments,Transport Operators in Respect of Concessionary Fares,Voluntary Orgs Reimbursement,19/02/2015,147119,1226,Andover Neighbourcare
Central Services to the Public,Management & Support Services,Finance,Supplies & Services,"Printing, Stationery & General Office Expenses",Postage Costs,26/02/2015,147572,1273.73,Whistl South West Ltd
Central Services to the Public,Management & Support Services,Chief Executive's,Supplies & Services,"Printing, Stationery & General Office Expenses",External Training Consultants,19/02/2015,147177,1282.4,P R Academy
Central Services to the Public,Management & Support Services,Legal & Democratic,Supplies & Services,Services,Legal Fees,19/02/2015,147763,1291.66,Local Government Association
Environmental & Regulatory,Street Cleansing (not chargeable to Highways),Environmental,Transport Related Expenditure,Direct Transport Costs,External Garages,12/02/2015,146385,1300,Scarab Sweepers Ltd
External Trading Accounts,Industrial Estates,Estates and Economic Development ,Supplies & Services,Services,Legal Fees,12/02/2015,147296,1309,Personal data - Data Protection Act 1998
"Highways, Roads & Transport",Parking Services,Plan Pol & Transport,Supplies & Services,Services,Professional Fees,05/02/2015,146697,1335.4,Patrol
Central Services to the Public,Management & Support Services,Estates and Economic Development ,Third Party Payments,Other Establishments,Contract Catering,26/02/2015,148169,1349.6,Edwards And Ward Ltd
Cultural & Related,Recreation & Sport,Community and Leisure ,Third Party Payments,Private contractors,Main Contractor Costs,26/02/2015,147786,1383.82,Irvine Grenson Ltd
Planning & Development,Economic Development,Estates and Economic Development ,Supplies & Services,"Printing, Stationery & General Office Expenses",Training Courses,26/02/2015,148117,1390,Oase Uk Ltd
Cultural & Related,Culture & Heritage,Community and Leisure ,Supplies & Services,Miscellaneous Expenses,Booking Of Acts,19/02/2015,147324,1397,Brian Shaw Concerts
"Highways, Roads & Transport",Public Transport,Plan Pol & Transport,Third Party Payments,Transport Operators in Respect of Concessionary Fares,Voluntary Orgs Reimbursement,12/02/2015,145587,1401,Andover Neighbourcare
Central Services to the Public,Management & Support Services,Estates and Economic Development ,Third Party Payments,Private contractors,Main Contractor Costs,19/02/2015,147787,1427.67,Kier Facilities Services Ltd
Planning & Development,Development Control,Planning & Building,Employees,Indirect Employee Expenses,Temporary Staff,05/02/2015,146036,1470,Hays Specialist Recruitment
Central Services to the Public,Management & Support Services,Finance,Supplies & Services,"Printing, Stationery & General Office Expenses",Postage Costs,05/02/2015,145399,1476.82,Whistl South West Ltd
Planning & Development,Development Control,Planning & Building,Supplies & Services,Services,Professional Fees,12/02/2015,146903,1493.37,Valuation Office Agency
External Trading Accounts,Industrial Estates,Estates and Economic Development ,Supplies & Services,Services,Professional Fees,12/02/2015,147275,1500,Denton Ukmea Llp
Planning & Development,Building Control,Planning & Building,Supplies & Services,Services,Professional Fees,26/02/2015,148158,1531.11,Peter Brett Associates Llp
Cultural & Related,Open Spaces,Environmental,Supplies & Services,"Equipment, Furniture & Materials",Purchase Equip + Materials,05/02/2015,142657,1532.25,Fleet (Line Markers) Ltd
Central Services to the Public,Local Tax Collection,Revenues,Supplies & Services,Miscellaneous Expenses,All Pay Fees,12/02/2015,146436,1567.64,Allpay Limited
Central Services to the Public,Management & Support Services,Estates and Economic Development ,Employees,Indirect Employee Expenses,Advertising Of Vacancies,26/02/2015,146413,1585,Hampshire County Council
"Highways, Roads & Transport",Highways and roads - maintenance,Plan Pol & Transport,Premises related Expenditure,Repairs Alterations & Maintenance of Buildings,Highways Repairs,19/02/2015,147576,1603,Irvine Grenson Ltd
Environmental & Regulatory,Regulatory Services,Housing and Environmental Health ,Supplies & Services,Grants and subscriptions,Capital Grants,12/02/2015,147318,1630,Bentley Mobility Services
Central Services to the Public,Emergency Planning,Corporate & Democratic,Supplies & Services,Grants & Subscriptions,Grants,26/02/2015,148563,1630.12,Personal data - Data Protection Act 1998
Central Services to the Public,Management & Support Services,Estates and Economic Development ,Third Party Payments,Other Establishments,Contract Catering,26/02/2015,148168,1667.46,Edwards And Ward Ltd
Environmental & Regulatory,Regulatory Services,Housing and Environmental Health ,Supplies & Services,Grants and subscriptions,Capital Grants,26/02/2015,148554,1730.93,Prism Medical Uk
Environmental & Regulatory,Regulatory Services,Housing and Environmental Health ,Supplies & Services,Grants and subscriptions,Capital Grants,12/02/2015,147311,1745.73,Aster Property
External Trading Accounts,Industrial Estates,Estates and Economic Development ,Supplies & Services,Services,Professional Fees,26/02/2015,148536,1786.67,Denton Ukmea Llp
Central Services to the Public,Management & Support Services,Estates and Economic Development ,Premises related Expenditure,Repairs Alterations & Maintenance of Buildings,Building Maint - Non Estates,12/02/2015,147286,1810,Temple Lifts Ltd
Central Services to the Public,Management & Support Services,Finance,Supplies & Services,"Printing, Stationery & General Office Expenses",Postage Costs,05/02/2015,144715,1898.25,Neopost Ltd
Environmental & Regulatory,Waste management,Environmental,Employees,Indirect Employee Expenses,Agency Staff - Waged Posts,05/02/2015,146357,1988.94,365 Supply Ltd
Environmental & Regulatory,Regulatory Services,Housing and Environmental Health ,Supplies & Services,Grants and subscriptions,Capital Grants,26/02/2015,148556,1999,Dolphin Mobility
Planning & Development,Community Development,Community and Leisure ,Supplies & Services,Grants & Subscriptions,Grants,25/02/2015,148384,2000,St Francis School Association
Environmental & Regulatory,Regulatory Services,Housing and Environmental Health ,Supplies & Services,Grants and subscriptions,Capital Grants,12/02/2015,147313,2033.39,S & J Building Services (Uk) Ltd
Central Services to the Public,Management & Support Services,Estates and Economic Development ,Third Party Payments,Other Establishments,Private Contractors,12/02/2015,147287,2113.55,Faraday Fabrication And Welding Ltd
Central Services to the Public,Management & Support Services,Environmental,Transport Related Expenditure,Direct Transport Costs,Diesel,12/02/2015,146029,2142.58,Wessex Petroleum Limited
Central Services to the Public,Management & Support Services,Estates and Economic Development ,Premises related Expenditure,Water Services,Water And Sewerage Charges,19/02/2015,147773,2158.36,Southern Water
Environmental & Regulatory,Waste management,Environmental,Transport Related Expenditure,Direct Transport Costs,Tyres,19/02/2015,146904,2233.47,Ats Euromaster Limited
Environmental & Regulatory,Regulatory Services,Housing and Environmental Health ,Supplies & Services,Grants and subscriptions,Capital Grants,26/02/2015,148557,2276.74,Hampshire Mobility Services
Central Services to the Public,Management & Support Services,Environmental,Transport Related Expenditure,Direct Transport Costs,Diesel,26/02/2015,147939,2278.45,Wessex Petroleum Limited
Planning & Development,Development Control,Planning & Building,Supplies & Services,Services,Project Consultancy - Policy,18/02/2015,147555,2280,Tanner & Tilley Planning Consultants
Planning & Development,Planning Policy,Plan Pol & Transport,Supplies & Services,Services,Project Consultancy - Policy,05/02/2015,146378,2359.16,Personal data - Data Protection Act 1998
Central Services to the Public,Emergency Planning,Corporate & Democratic,Supplies & Services,Grants & Subscriptions,Grants,05/02/2015,146713,2400,Personal data - Data Protection Act 1998
Planning & Development,Economic Development,Estates and Economic Development ,Supplies & Services,Grants & Subscriptions,Grants,05/02/2015,146696,2443.8,Heartflood Ltd
Cultural & Related,Culture & Heritage,Community and Leisure ,Supplies & Services,Miscellaneous Expenses,Booking Of Acts,05/02/2015,146395,2461.34,The Circus Of Horrors Ltd
Planning & Development,Development Control,Planning & Building,Supplies & Services,Miscellaneous Expenses,Planning Appeal Costs,18/02/2015,147163,2533.5,Allen Planning Ltd
Cultural & Related,Culture & Heritage,Community and Leisure ,Supplies & Services,Miscellaneous Expenses,Booking Of Acts,05/02/2015,146023,2570.66,Individual Entertainment Ltd
Cultural & Related,Culture & Heritage,Community and Leisure ,Supplies & Services,Miscellaneous Expenses,Booking Of Acts,12/02/2015,146902,2603.34,Imwp (Uk) Ltd
Central Services to the Public,Emergency Planning,Corporate & Democratic,Supplies & Services,Grants & Subscriptions,Grants,25/02/2015,148340,2616,Personal data - Data Protection Act 1998
Cultural & Related,Open Spaces,Environmental,Supplies & Services,"Equipment, Furniture & Materials",Purchase Equip + Materials,19/02/2015,146940,2653.2,Gb Sport & Leisure Uk Ltd
Central Services to the Public,Management & Support Services,Environmental,Transport Related Expenditure,Direct Transport Costs,Diesel,12/02/2015,146911,2666.39,Wessex Petroleum Limited
Central Services to the Public,Management & Support Services,Plan Pol & Transport,Supplies & Services,"Equipment, Furniture & Materials",Purchase Equip + Materials,05/02/2015,146351,2700,Gristwood & Toms Ltd
Environmental & Regulatory,Regulatory Services,Housing and Environmental Health ,Supplies & Services,Grants and subscriptions,Capital Grants,26/02/2015,148555,2711.58,Lifestyle Solutions
Central Services to the Public,Management & Support Services,Chief Executive's,Supplies & Services,Communications & Computing,Computer Software,19/02/2015,147281,2828.51,Northgate Information Solutions Uk Ltd
Planning & Development,Development Control,Planning & Building,Supplies & Services,Miscellaneous Expenses,Planning Appeal Costs,12/02/2015,146884,2957.44,The Terra Firma Consultancy Ltd
Central Services to the Public,Management & Support Services,Estates and Economic Development ,Third Party Payments,Other Establishments,Private Contractors,05/02/2015,146045,2974,Gss Flooring Limited
Planning & Development,Development Control,Planning & Building,Employees,Indirect Employee Expenses,Advertising Of Vacancies,26/02/2015,146413,3175,Hampshire County Council
Central Services to the Public,Management & Support Services,Legal & Democratic,Supplies & Services,Services,Professional Fees,19/02/2015,147571,3196.1,Dac Beachcroft
Central Services to the Public,Management & Support Services,Environmental,Transport Related Expenditure,Direct Transport Costs,Diesel,19/02/2015,147592,3206.52,Wessex Petroleum Limited
Cultural & Related,Open Spaces,Community and Leisure ,Premises related Expenditure,Grounds Maintenance Costs,Non Contract Tree Works,05/02/2015,143573,3267.32,Gristwood & Toms Ltd
Central Services to the Public,Management & Support Services,Estates and Economic Development ,Premises related Expenditure,Energy Costs,Gas,26/02/2015,147646,3283.02,Total Gas & Power Ltd
Environmental & Regulatory,Regulatory Services,Housing and Environmental Health ,Supplies & Services,Grants and subscriptions,Capital Grants,19/02/2015,147925,3323.48,Northfield Property Solutions Ltd
Housing Services,Housing Benefits ,Revenues,Supplies & Services,Communications & Computing,Software Maintenance,12/02/2015,147276,1673.82,Northgate Information Solutions Uk Ltd
Central Services to the Public,Local Tax Collection,Revenues,Supplies & Services,Communications & Computing,Software Maintenance,12/02/2015,147276,1673.82,Northgate Information Solutions Uk Ltd
Planning & Development,Building Control,Planning & Building,Transport Related Expenditure,Contract Hire and Operating Leases,Officer lease cars,19/02/2015,147162,3377.69,Arnold Clark Finance Ltd
Planning & Development,Community Development,Community and Leisure ,Supplies & Services,Grants & Subscriptions,Grants,18/02/2015,147619,3395.9,Enham Trust
Environmental & Regulatory,Regulatory Services,Housing and Environmental Health ,Supplies & Services,Grants and subscriptions,Capital Grants,12/02/2015,147306,3409.02,"Peter Martin, Plumbing & Carpentry"
Central Services to the Public,Management & Support Services,Legal & Democratic,Supplies & Services,Grants & Subscriptions,Subscriptions,05/02/2015,145784,3445.2,Thomson Reuters
Central Services to the Public,Management & Support Services,Environmental,Transport Related Expenditure,Direct Transport Costs,Diesel,26/02/2015,147915,3554,Wessex Petroleum Limited
Central Services to the Public,Management & Support Services,Environmental,Transport Related Expenditure,Direct Transport Costs,Diesel,12/02/2015,146030,3554.09,Wessex Petroleum Limited
"Highways, Roads & Transport",Parking Services,Plan Pol & Transport,Premises related Expenditure,Repairs Alterations & Maintenance of Buildings,Car Park General Repairs,12/02/2015,146701,3725.98,Irvine Grenson Ltd
Central Services to the Public,Local Land Charges,Legal & Democratic,Supplies & Services,Miscellaneous Expenses,Land Charges Fees,12/02/2015,146457,3748.65,Hampshire County Council
Environmental & Regulatory,Waste management,Environmental,Supplies & Services,"Equipment, Furniture & Materials",Purchase Equip + Materials,19/02/2015,147611,3850,Carbery Plastics
Central Services to the Public,Emergency Planning,Corporate & Democratic,Supplies & Services,Grants & Subscriptions,Grants,12/02/2015,147343,3912,Personal data - Data Protection Act 1998
Cultural & Related,Recreation & Sport,Community and Leisure ,Third Party Payments,Other Establishments,ALC Management Contract-TVL,05/02/2015,146408,3916.66,Valley Leisure Ltd
Central Services to the Public,Management & Support Services,Environmental,Transport Related Expenditure,Direct Transport Costs,Diesel,12/02/2015,146910,3998.25,Wessex Petroleum Limited
Central Services to the Public,Management & Support Services,Estates and Economic Development ,Third Party Payments,Other Establishments,Private Contractors,26/02/2015,148511,4180,Faraday Fabrication And Welding Ltd
Environmental & Regulatory,Regulatory Services,Housing and Environmental Health ,Supplies & Services,Grants and subscriptions,Capital Grants,26/02/2015,148553,4363,Hampshire Mobility Services
Planning & Development,Development Control,Planning & Building,Supplies & Services,Communications & Computing,Computer Hardware,05/02/2015,145409,4455,It Bus Ltd
Cultural & Related,Open Spaces,Community and Leisure ,Premises related Expenditure,Grounds Maintenance Costs,Non Contract Tree Works,05/02/2015,143573,4467.03,Gristwood & Toms Ltd
"Highways, Roads & Transport",Parking Services,Plan Pol & Transport,Supplies & Services,Services,Professional Fees,19/02/2015,146922,4965.13,Keyline Chartered Security Ltd
Planning & Development,Community Development,Community and Leisure ,Supplies & Services,Grants & Subscriptions,Grants,18/02/2015,147621,5000,Friends Of Romsey Signal Box
Central Services to the Public,Emergency Planning,Corporate & Democratic,Supplies & Services,Grants & Subscriptions,Grants,05/02/2015,146715,5000,Personal data - Data Protection Act 1998
Central Services to the Public,Emergency Planning,Corporate & Democratic,Supplies & Services,Grants & Subscriptions,Grants,12/02/2015,147339,5000,Personal data - Data Protection Act 1998
Central Services to the Public,Emergency Planning,Corporate & Democratic,Supplies & Services,Grants & Subscriptions,Grants,19/02/2015,147927,5000,Personal data - Data Protection Act 1998
Central Services to the Public,Emergency Planning,Corporate & Democratic,Supplies & Services,Grants & Subscriptions,Grants,19/02/2015,147930,5000,Personal data - Data Protection Act 1998
Central Services to the Public,Emergency Planning,Corporate & Democratic,Supplies & Services,Grants & Subscriptions,Grants,19/02/2015,147934,5000,Personal data - Data Protection Act 1998
Central Services to the Public,Emergency Planning,Corporate & Democratic,Supplies & Services,Grants & Subscriptions,Grants,26/02/2015,148549,5000,Personal data - Data Protection Act 1998
Central Services to the Public,Management & Support Services,IT,Employees,Indirect Employee Expenses,Recruitment Consultants,12/02/2015,147274,5000,Gcs Computer Recruitment Services
Planning & Development,Community Development,Community and Leisure ,Employees,Indirect Employee Expenses,Temporary Staff,17/02/2015,85492,5058,Winchester City Council
Cultural & Related,Open Spaces,Community and Leisure ,Premises related Expenditure,Grounds Maintenance Costs,Non Contract Tree Works,05/02/2015,143573,5474.65,Gristwood & Toms Ltd
Planning & Development,Development Control,Planning & Building,Supplies & Services,Miscellaneous Expenses,Planning Appeal Costs,19/02/2015,147556,5650,Appleton Group Bristol
Housing Services,Housing Benefits ,Revenues,Supplies & Services,Communications & Computing,Software Maintenance,12/02/2015,147278,5824.68,Northgate Information Solutions Uk Ltd
Cultural & Related,Culture & Heritage,Community and Leisure ,Supplies & Services,Services,Project Consultancy - Policy,26/02/2015,148358,6000,"Laurence Dube-Rushby, Installation Art"
Central Services to the Public,Management & Support Services,Plan Pol & Transport,Supplies & Services,"Equipment, Furniture & Materials",Purchase Equip + Materials,05/02/2015,145765,6551.69,Scottish & Southern Energy
Environmental & Regulatory,Waste management,Environmental,Supplies & Services,Miscellaneous Expenses,Recycling Bank Emptying,12/02/2015,146946,6696.69,Fcc Recycling (Uk) Ltd
Cultural & Related,Open Spaces,Community and Leisure ,Premises related Expenditure,Repairs Alterations & Maintenance of Buildings,Estates premises costs - AMP,26/02/2015,147578,7013.82,Irvine Grenson Ltd
Planning & Development,Planning Policy,Plan Pol & Transport,Supplies & Services,Services,Professional Fees,12/02/2015,146700,7324.4,Ashdown Site Investigation Ltd
Environmental & Regulatory,Regulatory Services,Estates and Economic Development ,Premises related Expenditure,Water Services,Water And Sewerage Charges,26/02/2015,148537,7933.19,Southern Water
Central Services to the Public,Management & Support Services,IT,Supplies & Services,"Printing, Stationery & General Office Expenses",Training Courses,05/02/2015,146373,8250,Quadsys
Central Services to the Public,Management & Support Services,Community and Leisure ,Supplies & Services,Grants & Subscriptions,Grants,26/02/2015,147549,10000,Romsey Community School
Environmental & Regulatory,Waste management,Environmental,Supplies & Services,"Equipment, Furniture & Materials",Purchase Equip + Materials,19/02/2015,147638,11575.98,Straight Plc
Environmental & Regulatory,Waste management,Environmental,Supplies & Services,"Equipment, Furniture & Materials",Purchase Equip + Materials,12/02/2015,146703,12740,Mgb Plastics Ltd
Central Services to the Public,Elections,Legal & Democratic,Supplies & Services,"Printing, Stationery & General Office Expenses",Postage Costs,26/02/2015,147916,12752.4,Financial Data Management Plc
Central Services to the Public,Management & Support Services,Plan Pol & Transport,Premises related Expenditure,Repairs Alterations & Maintenance of Buildings,General Repairs,05/02/2015,146350,13741.4,Amey Lg Ltd
Cultural & Related,Recreation & Sport,Community and Leisure ,Third Party Payments,Private contractors,Main Contractor Costs,26/02/2015,147758,17151,Hampshire County Council
Central Services,Corporate & Democratic Core,Corporate & Democratic,Supplies & Services,Miscellaneous Expenses,External Audit Fees,26/02/2015,146890,21573,Ernst & Young Llp
Central Services to the Public,Management & Support Services,Chief Executive's,Third Party Payments,Other Local Authorities,Shared Service Contract Costs,26/02/2015,146413,32597.28,Hampshire County Council
Cultural & Related,Recreation & Sport,Community and Leisure ,Third Party Payments,Other Establishments,ALC Management Contract-TVL,05/02/2015,146409,34000,Valley Leisure Ltd
Cultural & Related,Open Spaces,Environmental,Transport Related Expenditure,Contract Hire and Operating Leases,Leasing rentals,26/02/2015,147098,42684.15,Siemens Financial Services Ltd
Central Services to the Public,Management & Support Services,Estates and Economic Development ,Third Party Payments,Private contractors,Main Contractor Costs,12/02/2015,142287,46621.86,Kompan Ltd
Central Services to the Public,Management & Support Services,Plan Pol & Transport,Premises related Expenditure,Repairs Alterations & Maintenance of Buildings,General Repairs,19/02/2015,147319,46864.58,Rocon Contractors Ltd
Central Services to the Public,Management & Support Services,Estates and Economic Development ,Third Party Payments,Private contractors,Main Contractor Costs,12/02/2015,142286,53941.35,Kompan Ltd
